Cogmind - Beta 14 @@@ ROGUE MODE // 2025.03.13 @ 17:12:04 Player: azie Result: Destroyed by G-47 Trooper with Particle Gun Performance ------------- Evolutions (0) 0 Regions Visited (1) 200 Robots Destroyed (14) 70 Value Destroyed (334) 334 Prototype IDs (0) 0 Alien Tech Used (0) 0 Bonus (0) 0 TOTAL SCORE: 604 Bonus ------- None Cogmind --------- Core Integrity 0/250 Matter 307/400 Energy 98/100 System Corruption 0% Temperature Cool (9) Movement Walking (120) Location -10/Materials Parts ------- > --- POWER (1) -------- (None) > --- PROPULSION (2) --- Aluminum Leg Flight Unit > --- UTILITY (2) ------ Medium Matter Pod Terrain Scanner > --- WEAPON (2) ------- Light Cannon Datajack > --- INVENTORY (5) ---- Weapon Shielding Medium Laser Light Assault Rifle Peak State ------------ > --- POWER ------------ Light Ion Engine > --- PROPULSION ------- Aluminum Leg Aluminum Leg > --- UTILITY ---------- Small Matter Pod Improved Terrain Scanner > --- WEAPON ----------- EM Pulse Gun Assault Rifle > --- INVENTORY -------- Light Ion Engine Wheel Wheel Light Assault Rifle [Rating: 9] Favorites ----------- Power Light Ion Engine Engine Light Ion Engine Propulsion Aluminum Leg Leg Aluminum Leg Wheel Wheel Flight Unit Flight Unit Utility Medium Matter Pod Device Improved Terrain Scanner Storage Medium Matter Pod Weapon Light Cannon Energy Gun EM Pulse Gun Ballistic Gun Assault Rifle Ballistic Cannon Light Cannon Launcher Grenade Launcher Special Melee Weapon Datajack Build | -11 -10 ------- Run | Yrd Mat Slots Evolved . | . . Power . | . . Propulsion . | . . Utility . | . . Weapon . | . . Parts Attached 23 | 7 16 Power 4 | 1 3 Engine 4 | 1 3 Core . | . . Reactor . | . . Propulsion 5 | 2 3 Treads . | . . Leg 3 | 2 1 Wheel 1 | . 1 Hover . | . . Flight 1 | . 1 Utility 8 | 2 6 Device 2 | 1 1 Storage 6 | 1 5 Processor . | . . Hackware . | . . Protection . | . . Artifact . | . . Weapon 6 | 2 4 Energy Gun 1 | 1 . Energy Cannon . | . . Ballistic Gun 2 | 1 1 Ballistic Cannon 1 | . 1 Launcher 1 | . 1 Special Weapon . | . . Impact Weapon . | . . Slashing Weapon . | . . Piercing Weapon . | . . Special Melee Weapon 1 | . 1 Unidentified Prototypes . | . . Parts Lost 9 | . 9 Power 3 | . 3 Propulsion 3 | . 3 Utility 1 | . 1 Weapon 2 | . 2 Highest Loss Streak 5 | . 5 To Critical Strikes . | . . Average Slot Usage (%) 79 | . 79 Engine 13 | . 13 Leg 9 | . 9 Flight 1 | . 1 Device 6 | . 6 Storage 20 | . 20 Energy Gun 3 | . 3 Ballistic Gun 6 | . 6 Ballistic Cannon 8 | . 8 Special Melee Weapon 6 | . 6 Peak Build Rating 9 | 9 9 Average Rating 5 | 5 6 On Entrance 4 | . 9 Naked Turns . | . . Heaviest Build 49 | 9 49 Greatest Support 20 | 20 20 Greatest Overweight (x) 16 | . 16 Average Overweight (x) 1 | . 2 Largest Inventory Capacity 20 | 5 20 Average Capacity 9 | 5 10 Most Carried 5 | 5 5 Average Carried 2 | 2 2 Final Capacity 5 | 5 5 Final Carried 4 | 4 3 Class Distribution -------------------- 100% | Mutant Dominant Class ---------------- Mutant | -10/Materials Resources | -11 -10 ----------- Run | Yrd Mat Matter Collected 501 | 326 175 Remotely . | . . Salvage Created 390 | 72 318 Parts 31 | 5 26 Haulers Intercepted . | . . Recyclers Shooed . | . . Parts Field Recycled . | . . Retrieved Matter . | . . Parts Self-Destructed . | . . Prevented . | . . Kills | -11 -10 ------- Run | Yrd Mat Combat Hostiles Destroyed 11 | 1 10 Guns 7 | . 7 Cannons 1 | . 1 AOE 3 | 1 2 Classes Destroyed 4 | 3 1 Worker 2 | 1 1 Tunneler 1 | 1 . Swarmer 3 | . 3 Grunt 8 | 1 7 Best Kill Streak 4 | 1 4 Combat Bots Only 4 | 1 4 Max Kills in Single Turn 1 | 1 1 Gunslinging . | . . Exploded 1 | 1 1 Melee . | . . Uniques/NPCs Destroyed . | . . Combat | -11 -10 -------- Run | Yrd Mat Hostile Shots Fired 100 | 4 96 Missed 27 | 2 25 Damage Taken 920 | 23 897 Core 260 | . 260 Absorbed by Shields . | . . Core Remaining (%) 100 | 100 . Volleys Fired 68 | 11 57 Largest 2 | 2 2 Hottest 70 | 60 70 Shots Fired 77 | 12 65 Gun 67 | 12 55 Cannon 7 | . 7 Launcher 3 | . 3 Special . | . . Kinetic 57 | 6 51 Thermal . | . . Explosive 3 | . 3 Electromagnetic 17 | 6 11 Robot Hit Streak 6 | 2 6 Robot Miss Streak 6 | 2 6 Penetration Max . | . . Secondary Targets 1 | . 1 Max Gunslinging Chain 1 | . 1 Shots Hit Robots 45 | 5 40 Core Hits 28 | 5 23 Critical Kills . | . . Critical Parts Destroyed 1 | . 1 Critical Strikes 1 | . 1 Destroy 1 | . 1 Melee Attacks . | . . Impact . | . . Slashing . | . . Piercing . | . . Sneak Attacks . | . . Combat Hostiles . | . . Follow-up Attacks . | . . Damage Inflicted 744 | 129 615 Guns 402 | 65 337 Cannons 91 | . 91 Explosions 251 | 64 187 Melee . | . . Ramming . | . . Kinetic 405 | 41 364 Thermal 107 | 64 43 Explosive 144 | . 144 Electromagnetic 88 | 24 64 Impact . | . . Slashing . | . . Piercing . | . . Highest Corruption . | . . Average Corruption . | . . Corruption Purged . | . . Corruption Blocked . | . . Overload Shots . | . . Overflow Damage 17 | . 17 Projectiles . | . . Explosions 17 | . 17 Melee . | . . Knockbacks 1 | . 1 Impact . | . . Kinetic 1 | . 1 Secondary . | . . Self-Inflicted Damage 62 | . 62 Shots 2 | . 2 Rammed 1 | . 1 Targets Rammed 1 | . 1 Kicked . | . . Crushed . | . . Highest Temperature 42 | 12 42 Average Temperature 14 | 10 14 Received Heat Transfer 453 | 12 441 Siege Activations . | . . Robots Corrupted . | . . Combat Hostiles . | . . Parts Fried . | . . Impact Corruptions . | . . Robots Melted . | . . Combat Hostiles . | . . Parts Melted 1 | 1 . Heat Transferred 200 | 150 50 Parts Sabotaged . | . . Parts Stolen . | . . Parts Stripped . | . . Power Chain Reactions 2 | 1 1 Alert | -11 -10 ------- Run | Yrd Mat Peak Influence 211 | 30 211 Initial 19 | . 19 Average 51 | 13 60 Maximum Alert Level 1 | . 1 Low Security (%) 89 | 100 86 Level 1 10 | . 13 Level 2 . | . . Level 3 . | . . Level 4 . | . . Level 5 . | . . High Security . | . . Max Security . | . . Squads Dispatched 2 | . 2 Investigation 1 | . 1 Extermination . | . . Reinforcement 1 | . 1 Assault . | . . Garrison . | . . Intercept . | . . Searches Triggered . | . . Construction Impeded . | . . Haulers Reinforced . | . . Active Scanning Responses . | . . Cargo Convoy Interrupts . | . . Stealth | -11 -10 --------- Run | Yrd Mat Distress Signals 3 | . 3 Communications Jammed . | . . Distress Signals . | . . Times Spotted 20 | 1 19 Peak Tracking Total 7 | 1 7 Tactical Retreats . | . . Traps | -11 -10 ------- Run | Yrd Mat Traps Triggered . | . . Indirectly . | . . Trap Hack Attempts . | . . Triggered . | . . Disarmed . | . . Reprogrammed . | . . Reused . | . . Traps Extracted . | . . Installed . | . . Triggered . | . . Machines | -11 -10 ---------- Run | Yrd Mat Machines Disabled 1 | . 1 Max in Single Turn 1 | . 1 Machines Repaired . | . . Machines Dismantled . | . . Machines Sabotaged . | . . Overloaded Fab Kills . | . . Hacking | -11 -10 --------- Run | Yrd Mat Machines Accessed 3 | . 3 Terminals 3 | . 3 Fabricators . | . . Repair Stations . | . . Recycling Units . | . . Scanalyzers . | . . Garrison Access . | . . Total Hacks 15 | . 15 Successful 7 | . 7 Failed 8 | . 8 Catastrophic 2 | . 2 Database Lockouts . | . . Manual . | . . Terminals 15 | . 15 Fabricators . | . . Repair Stations . | . . Recycling Units . | . . Scanalyzers . | . . Garrison Access . | . . Terminal Hacks 7 | . 7 Record 5 | . 5 Alert Level 1 | . 1 Zone Layout 1 | . 1 Fabricator Hacks . | . . Repair Station Hacks . | . . Recycling Unit Hacks . | . . Scanalyzer . | . . Garrison Access Hacks . | . . Unauthorized Hacks . | . . Terminals . | . . Fabricators . | . . Repair Stations . | . . Recycling Units . | . . Scanalyzers . | . . Garrison Access . | . . Data Cores Recovered . | . . Used . | . . Hacking Detections 3 | . 3 Full Trace Events 3 | . 3 Feedback Events . | . . Feedback Blocked . | . . Robot Schematics Acquired . | . . Robots Built . | . . Authchips . | . . Time . | . . Total Robot Build Rating . | . . Part Schematics Acquired . | . . Parts Built . | . . Authchips . | . . Time . | . . Total Part Build Rating . | . . Parts Repaired . | . . Time . | . . Parts Recycled . | . . Recycled Matter . | . . Retrieved Matter . | . . Retrieved Components . | . . Parts Scanalyzed . | . . Part Schematics Acquired . | . . Parts Damaged . | . . Bothacking | -11 -10 ------------ Run | Yrd Mat Used RIF Installer . | . . Robots Hacked . | . . Non-combat . | . . Combat . | . . Robot Hacks Applied . | . . Relay Couplers Released . | . . Fabnet Peak Effective % . | . . Robots Rewired . | . . Allies Hacked . | . . Hacks Repelled . | . . Allies | -11 -10 -------- Run | Yrd Mat Total Allies . | . . Largest Group . | . . Highest-Rated Group . | . . Highest-Rated Ally . | . . Total Orders . | . . Ally Attacks . | . . Total Damage . | . . Kills . | . . Allies Corrupted . | . . Allies Melted . | . . Intel | -11 -10 ------- Run | Yrd Mat Robot Analysis Total . | . . Derelict Logs Recovered . | . . Drone Launches . | . . Drone Recoveries . | . . Exploration | -11 -10 ------------- Run | Yrd Mat Turns Passed 1080 | 215 865 Spaces Moved 494 | 167 327 Core 160 | 37 123 Treads . | . . Legs 321 | 130 191 Wheels 11 | . 11 Hover . | . . Flight 2 | . 2 Fastest Speed 50 | 50 80 Average Speed 178 | 104 216 Slowest Speed 850 | 120 850 Overloaded Moves . | . . Propulsion Burnouts . | . . Robots Hopped . | . . Cave-ins Triggered . | . . Exploration Rate (%) 29 | 6 52 Regions Visited 1 Branch Regions . Pre-discovered Areas . | . . Known Exits Taken . | . . Unknown Exits Taken 1 | 1 . Scrap Searched . | . . Spaces Dug . | . . Terrain Destroyed 13 | . 13 Melee . | . . Projectile . | . . AOE 13 | . 13 Terrain Rammed . | . . Walls Destroyed . | . . Machines Disabled . | . . Actions | -11 -10 --------- Run | Yrd Mat Total 623 | 195 428 Wait 9 | . 9 Move 493 | 166 327 Hop . | . . Pick Up 23 | 11 12 Fast Attach . | . . Attach 20 | 7 13 Detach 1 | . 1 Swap 3 | . 3 Drop 5 | . 5 Fire 68 | 11 57 Melee . | . . Ram 1 | . 1 Kick . | . . Crush . | . . Escape Stasis . | . . Rewire . | . . Trap . | . . Miscellaneous . | . . Route ------- -11/Scrapyard -10/Materials (discovered 2 exits: [*Mat] / [*Min]) History --------- Turn | Location | Event 2 | -11/Scrapyard | Met Revision 17 114 | -11/Scrapyard | Discovered new exit (range 8) 216 | -11/Scrapyard | Entered Materials 326 | -10/Materials | Build established: Mutant 444 | -10/Materials | Core integrity fell below 50% 459 | -10/Materials | Lost 5 parts (1p1n1u2w) 490 | -10/Materials | Core integrity fell below 20% 522 | -10/Materials | Lost 3 parts (1p2n) 528 | -10/Materials | Discovered new exit (range 17) 1019 | -10/Materials | Discovered new exit (range 12) 1081 | -10/Materials | Destroyed by G-47 Trooper with Particle Gun Last Messages --------------- until it reaches a certain quota, at which point it is transferred to the nearest [DSF]. K-01 Serf cleans the Neutrino Reactor. Acquired Weapon Shielding. Dropped Hcp. Storage Unit. Acquired Terrain Scanner. Acquired Med. Battery. Dropped Med. Battery. Acquired Aluminum Leg. Acquired Flight Unit. Flying robots can pass through spaces occupied by others, even hostile robots. EXIT=FOUND Acquired Med. Laser. W-16 Scout sends out distress signal. G-47 Trooper knocked back. Lgt. Ion Engine destroyed. G-34 Mercenary destroyed. R-06 Scavenger collects Aluminum Leg. [Achievement: First Step to Greatness] Map ----- +----------------------------------------------------+ | | | | | | | | | ??????????????????????????????????????????? | | ???????????????????#??????????????????????? | | ??????????????????????????????????????????? | | ???????????????????##########?????????????? | | ???????????????????# #????#????????? | | ???????????????????# """ #??#??#???????? | | ????????#####???#??# """ #?????????????? | | ???????##"""##??#??# """ #?????#??#????? | | ??????##"!!!"##????# #########?????? | | ??????#"" ""#????# """ # #####?? | | ??????# #????# """ # # #?? | | ??????# < #????# """ #""" # < #?? | | ??????# #????# #""" # #?? | | ??????# #????#####+####""" + #?? | | ??????## ###??#?### + # #?? | | ???????## ##?????#### ###""" # ### | | ######### #??????# #?#""" # # | | # ## #????#?# #?#""" # # " | | # ## #??????# #?# # # | | # """ ## ##?????# #?# # # | | # """ # k####### ########### + | | # """ # @ # " | | # + w % # " | | # """ # g%r # " | | # """ # ################# ######## | | # """ ########??#????# # ########## | | # #??????????????# T # # T #?# | | # #???#????#?#???# + + ### | | # #???#?????#????# // # #""" #?# | | ########??????????#???# // # #""" #?# | | ???????????????????#?## // # #""" ### | | ?????????????????#????######## # ### | | ????????????????#???????#????# ########?# | | ????????????????#???????#???## #????????# | | ?????????????????????????????# #????????# | | ?????????????????????????????# #???#????? | | ?????????????????????????????# #????????# | | ????????????????????????#?#### ########## | | ?????????????################ | | ???????????? % | | ???????????? % | | ???????????? %%"" | | ????????????#?########### Y" | | ????????????????????? #% "" ####### | | ?????????????????? # #?#?#?# | | ???????????????? "Y % # #??#### | +----------------------------------------------------+ Best States ------------- Heat Dissipation 25 Energy Generation 10 Energy Capacity 250 Matter Stores 450 Matter Capacity 450 Sight Range 16 Terrain Scan Range 16 Terrain Scan Density 10 Evasion (%) 55 Item Schematics ----------------- None Robot Schematics ------------------ None Fabricated ------------ Nothing Alien Tech Used ----------------- None Achievements -------------- First Step to Greatness Let's See Who's Tougher One Hack Too Far Storm Trooper Uninvited Guest Challenges ------------ None Game ------ Seed RocketSwarmModule Manual? 0 Play Time 00:26:04 Cumulative 0.3 hours Start 2025.03.13 @ 16:44:30 End 2025.03.13 @ 17:12:04 Sessions 1 Manual Loads 0 Difficulty Rogue Special Mode None Game No. 1 Rogue 1 Adventurer 0 Explorer 0 Win Type - Total 0 Types 0/0/0/0/0/0/0/0/0 Lore% 0 Gallery% 1 Achievement% 1 Wizard Run 0 Options --------- Layout 1 ASCII 0 Keyboard 0 Movement Mouse Keybinds 0 Fullscreen 1 Font 24/Smallcaps Map View 50x35 Zoom Use 0% Tactical HUD 0 Map Filters NONE Filters NONE Steam SD RUN: f8a498e3-f4c7-4565-9a02-31e03403029b